Cogmind - Beta 11.1 @@@ ROGUE MODE // 2022.06.23 @ 07:47:41 Player: Espresso Result: Self-destructed Performance ------------- Evolutions (1) 500 Regions Visited (2) 400 Robots Destroyed (10) 50 Value Destroyed (275) 275 Prototype IDs (0) 0 Alien Tech Used (0) 0 Bonus (0) 0 TOTAL SCORE: 1225 Bonus ------- None Cogmind --------- Core Integrity 362/400 Matter 7/300 Energy 100/100 System Corruption 0% Temperature Cool (0) Movement Treading (240) Ox1 Location -9/Materials Parts ------- > --- POWER (1) -------- (None) > --- PROPULSION (2) --- Light Treads > --- UTILITY (3) ------ Small Storage Unit Large Storage Unit > --- WEAPON (3) ------- Medium Laser Medium Laser Spread Laser > --- INVENTORY (15) --- Light Treads Medium Laser Grenade Launcher Peak State ------------ > --- POWER ------------ (None) > --- PROPULSION ------- Light Treads Light Treads > --- UTILITY ---------- Small Storage Unit Large Storage Unit > --- WEAPON ----------- Medium Laser Medium Laser Spread Laser > --- INVENTORY -------- Light Treads Medium Laser Grenade Launcher [Rating: 8] Favorites ----------- Power Light Ion Engine Engine Light Ion Engine Propulsion Light Treads Treads Light Treads Utility Small Storage Unit Storage Small Storage Unit Weapon Medium Laser Energy Gun Medium Laser Launcher Grenade Launcher Build | -11 -10 -9 ------- Run | Scr Mat Mat Slots Evolved 2 | . . 2 Power . | . . . Propulsion . | . . . Utility 1 | . . 1 Weapon 1 | . . 1 Parts Attached 17 | 6 3 8 Power 1 | 1 . . Engine 1 | 1 . . Core . | . . . Reactor . | . . . Propulsion 4 | 2 . 2 Treads 4 | 2 . 2 Leg . | . . . Wheel . | . . . Hover . | . . . Flight . | . . . Utility 3 | 1 1 1 Device . | . . . Storage 3 | 1 1 1 Processor . | . . . Hackware . | . . . Protection . | . . . Artifact . | . . . Weapon 9 | 2 2 5 Energy Gun 7 | 2 . 5 Energy Cannon . | . . . Ballistic Gun . | . . . Ballistic Cannon . | . . . Launcher 2 | . 2 . Special Weapon . | . . . Impact Weapon . | . . . Slashing Weapon . | . . . Piercing Weapon . | . . . Special Melee Weapon . | . . . Unidentified Prototypes . | . . . Parts Lost 7 | . 6 1 Power 1 | . 1 . Propulsion 3 | . 2 1 Utility 1 | . 1 . Weapon 2 | . 2 . Highest Loss Streak 5 | . 5 1 To Critical Strikes . | . . . Average Slot Usage (%) 77 | . 87 61 Engine 7 | . 12 . Treads 18 | . 25 7 Storage 24 | . 26 22 Energy Gun 19 | . 13 29 Launcher 6 | . 8 2 Naked Turns . | . . . Heaviest Build 32 | 11 16 32 Greatest Support 40 | 40 40 40 Greatest Overweight (x) 10 | . 2 10 Average Overweight (x) 1 | . . 4 Largest Inventory Capacity 15 | 8 8 15 Average Capacity 10 | 6 8 14 Most Carried 3 | . 3 3 Average Carried 1 | . 2 1 Final Capacity 15 | 8 8 15 Final Carried 3 | . 2 3 Class Distribution -------------------- 76% | Mutant 23% | Gunner Dominant Class ---------------- Mutant | -10/Materials Gunner | -9/Materials Resources | -11 -10 -9 ----------- Run | Scr Mat Mat Matter Collected 174 | 107 67 . Remotely . | . . . Salvage Created 215 | . 165 50 Parts 19 | . 17 2 Haulers Intercepted . | . . . Recyclers Shooed . | . . . Parts Field Recycled . | . . . Retrieved Matter . | . . . Parts Self-Destructed . | . . . Prevented . | . . . Kills | -11 -10 -9 ------- Run | Scr Mat Mat Combat Hostiles Destroyed 8 | . 7 1 Guns 1 | . . 1 AOE 7 | . 7 . Classes Destroyed 5 | . 4 1 Builder 1 | . 1 . Recycler 1 | . 1 . Swarmer 3 | . 3 . Grunt 4 | . 4 . Sentry 1 | . . 1 Best Kill Streak 4 | . 4 1 Combat Bots Only 3 | . 3 1 Max Kills in Single Turn 2 | . 2 1 Gunslinging . | . . . Exploded 2 | . 2 . Melee . | . . . Uniques/NPCs Destroyed . | . . . Combat | -11 -10 -9 -------- Run | Scr Mat Mat Damage Taken 1061 | . 686 375 Core 145 | . 107 38 Absorbed by Shields . | . . . Core Remaining (%) 78 | 100 57 . Volleys Fired 25 | . 18 7 Largest 3 | . 2 3 Hottest 165 | . 80 165 Shots Fired 47 | . 31 16 Gun 33 | . 17 16 Cannon . | . . . Launcher 14 | . 14 . Special . | . . . Kinetic . | . . . Thermal 33 | . 17 16 Explosive 14 | . 14 . Electromagnetic . | . . . Robot Hit Streak 10 | . 8 10 Robot Miss Streak 2 | . 1 2 Penetration Max . | . . . Secondary Targets 1 | . . 1 Max Gunslinging Chain 1 | . . 1 Shots Hit Robots 24 | . 11 13 Core Hits 22 | . 17 5 Critical Kills . | . . . Critical Parts Destroyed . | . . . Critical Strikes 1 | . . 1 Burn 1 | . . 1 Melee Attacks . | . . . Impact . | . . . Slashing . | . . . Piercing . | . . . Sneak Attacks . | . . . Combat Hostiles . | . . . Follow-up Attacks . | . . . Damage Inflicted 894 | . 723 171 Guns 260 | . 89 171 Cannons . | . . . Explosions 630 | . 630 . Melee . | . . . Ramming 4 | . 4 . Kinetic . | . . . Thermal 295 | . 124 171 Explosive 595 | . 595 . Electromagnetic . | . . . Impact . | . . . Slashing . | . . . Piercing . | . . . Highest Corruption . | . . . Average Corruption . | . . . Corruption Purged . | . . . Corruption Blocked . | . . . Overload Shots . | . . . Overflow Damage 126 | . 126 . Projectiles . | . . . Explosions 126 | . 126 . Melee . | . . . Knockbacks . | . . . Impact . | . . . Kinetic . | . . . Secondary . | . . . Self-Inflicted Damage 181 | . 181 . Shots 4 | . 4 . Rammed 2 | . 2 . Targets Rammed 2 | . 2 . Kicked . | . . . Crushed . | . . . Highest Temperature 227 | . 127 227 Average Temperature 55 | . 38 87 Received Heat Transfer 414 | . 261 153 Effects 1 | . . 1 Interference 1 | . . 1 Siege Activations . | . . . Robots Corrupted . | . . . Combat Hostiles . | . . . Parts Fried . | . . . Impact Corruptions . | . . . Robots Melted . | . . . Combat Hostiles . | . . . Parts Melted . | . . . Heat Transferred 835 | . 309 526 Parts Sabotaged . | . . . Parts Stolen . | . . . Parts Stripped . | . . . Power Chain Reactions . | . . . Missiles Intercepted . | . . . Alert | -11 -10 -9 ------- Run | Scr Mat Mat Peak Influence 435 | . 435 243 Initial 183 | . . 183 Average 202 | . 236 206 Maximum Alert Level 2 | . 2 1 Low Security (%) 49 | 100 29 66 Level 1 46 | . 62 33 Level 2 4 | . 7 . Level 3 . | . . . Level 4 . | . . . Level 5 . | . . . High Security . | . . . Max Security . | . . . Squads Dispatched 4 | . 2 2 Investigation . | . . . Extermination . | . . . Reinforcement 4 | . 2 2 Assault . | . . . Garrison . | . . . Intercept . | . . . Searches Triggered . | . . . Construction Impeded . | . . . Haulers Reinforced . | . . . Active Scanning Responses . | . . . Cargo Convoy Interrupts . | . . . Stealth | -11 -10 -9 --------- Run | Scr Mat Mat Distress Signals 3 | . . 3 Communications Jammed . | . . . Distress Signals . | . . . Times Spotted 19 | . 14 5 Peak Tracking Total 3 | . 3 3 Tactical Retreats . | . . . Traps | -11 -10 -9 ------- Run | Scr Mat Mat Traps Triggered . | . . . Indirectly . | . . . Trap Hack Attempts . | . . . Triggered . | . . . Disarmed . | . . . Reprogrammed . | . . . Reused . | . . . Traps Extracted . | . . . Installed . | . . . Triggered . | . . . Machines | -11 -10 -9 ---------- Run | Scr Mat Mat Machines Disabled 4 | . 4 . Max in Single Turn 2 | . 2 . Machines Sabotaged . | . . . Garrisons Compromised . | . . . Overloaded Fab Kills . | . . . Hacking | -11 -10 -9 --------- Run | Scr Mat Mat Machines Accessed . | . . . Terminals . | . . . Fabricators . | . . . Repair Stations . | . . . Recycling Units . | . . . Scanalyzers . | . . . Garrison Access . | . . . Total Hacks . | . . . Successful . | . . . Failed . | . . . Catastrophic . | . . . Database Lockouts . | . . . Manual . | . . . Terminals . | . . . Fabricators . | . . . Repair Stations . | . . . Recycling Units . | . . . Scanalyzers . | . . . Garrison Access . | . . . Terminal Hacks . | . . . Fabricator Hacks . | . . . Repair Station Hacks . | . . . Recycling Unit Hacks . | . . . Scanalyzer . | . . . Garrison Access Hacks . | . . . Unauthorized Hacks . | . . . Terminals . | . . . Fabricators . | . . . Repair Stations . | . . . Recycling Units . | . . . Scanalyzers . | . . . Garrison Access . | . . . Data Cores Recovered . | . . . Used . | . . . Hacking Detections . | . . . Full Trace Events . | . . . Feedback Events . | . . . Feedback Blocked . | . . . Robot Schematics Acquired . | . . . Robots Built . | . . . Authchips . | . . . Time . | . . . Total Robot Build Rating . | . . . Part Schematics Acquired . | . . . Parts Built . | . . . Authchips . | . . . Time . | . . . Total Part Build Rating . | . . . Parts Repaired . | . . . Time . | . . . Parts Recycled . | . . . Recycled Matter . | . . . Retrieved Matter . | . . . Retrieved Components . | . . . Parts Scanalyzed . | . . . Part Schematics Acquired . | . . . Parts Damaged . | . . . Bothacking | -11 -10 -9 ------------ Run | Scr Mat Mat Used RIF Installer . | . . . Robots Hacked . | . . . Non-combat . | . . . Combat . | . . . Robot Hacks Applied . | . . . Relay Couplers Released . | . . . Fabnet Peak Effective % . | . . . Robots Rewired . | . . . Allies Hacked . | . . . Hacks Repelled . | . . . Allies | -11 -10 -9 -------- Run | Scr Mat Mat Total Allies . | . . . Largest Group . | . . . Highest-Rated Group . | . . . Highest-Rated Ally . | . . . Total Orders . | . . . Ally Attacks . | . . . Total Damage . | . . . Kills . | . . . Allies Corrupted . | . . . Allies Melted . | . . . Intel | -11 -10 -9 ------- Run | Scr Mat Mat Robot Analysis Total . | . . . Derelict Logs Recovered . | . . . Drone Launches . | . . . Drone Recoveries . | . . . Exploration | -11 -10 -9 ------------- Run | Scr Mat Mat Turns Passed 596 | 60 330 206 Spaces Moved 250 | 36 164 50 Core 45 | 5 18 22 Treads 205 | 31 146 28 Legs . | . . . Wheels . | . . . Hover . | . . . Flight . | . . . Fastest Speed 50 | 50 150 160 Average Speed 193 | 144 158 341 Slowest Speed 550 | 160 160 550 Overloaded Moves . | . . . Propulsion Burnouts . | . . . Robots Hopped . | . . . Cave-ins Triggered . | . . . Exploration Rate (%) 16 | 5 34 9 Regions Visited 2 Branch Regions . Pre-discovered Areas . | . . . Known Exits Taken . | . . . Unknown Exits Taken 2 | 1 1 . Scrap Searched . | . . . Spaces Dug . | . . . Terrain Destroyed 109 | . 109 . Melee . | . . . Projectile . | . . . AOE 109 | . 109 . Terrain Rammed . | . . . Walls Destroyed . | . . . Machines Disabled . | . . . Actions | -11 -10 -9 --------- Run | Scr Mat Mat Total 309 | 41 200 68 Wait 11 | . 11 . Move 248 | 35 163 50 Hop . | . . . Pick Up 5 | . 3 2 Fast Attach 11 | 6 1 4 Attach 3 | . 1 2 Detach . | . . . Swap 3 | . 1 2 Drop 1 | . . 1 Fire 25 | . 18 7 Melee . | . . . Ram . | . . . Kick . | . . . Crush 2 | . 2 . Escape Stasis . | . . . Rewire . | . . . Trap . | . . . Miscellaneous . | . . . Route ------- -11/Scrapyard -10/Materials -9/Materials History --------- Turn | Location | Event 3 | -11/Scrapyard | Discovered new exit (range 15) 61 | -11/Scrapyard | Entered Materials 310 | -10/Materials | Build established: Mutant 379 | -10/Materials | Discovered new exit (range 9) 391 | -10/Materials | Entered another Materials area 391 | -9/Materials | Evolved 2 slots: Utility x1, Weapon x1 396 | -9/Materials | Lost 5 parts (1p2n1u1w) 597 | -9/Materials | Self-destructed Last Messages --------------- T-07 Excavator is excavating. K-01 Serf collects debris. T-07 Excavator is excavating. K-01 Serf collects debris. T-07 Excavator is excavating. K-01 Serf collects debris. T-07 Excavator is excavating. K-01 Serf collects debris. T-07 Excavator is excavating. Acquired Lgt. Treads. ALERT: Hostiles spotted, dispatching reinforcements to Terminal M002. Y-45 Defender suffers critical hit (Burn). Y-45 Defender destroyed. Switching to secondary target: Y-45 Defender. Overheating: System interference. Med. Laser temporarily disabled. U-05 Engineer lays Concrete. T-07 Excavator is excavating. U-05 Engineer lays Concrete. Lgt. Treads destroyed. Map ----- +----------------------------------------------------+ | | | | | | | ??????????????????????????????????????????? | | ??????????????????????????????????????????? | | ??????????????????????????????????????????? | | ??????????????????????????????????????????? | | ??????????????????????????????????????????? | | ??????????????????????????????????????????? | | ??????????????????????????????????????????? | | ??????????????????????????????????????????? | | ??????????????????????????????????????????? | | ??????????????????????????????????????????? | | ???????????????????????????# ???????????? | | ???????????????????????????# ???????????? | | ???????????????????????????# ????#####??? | | ???????????????????????????# #???# #??? | | ???????????????????????????# ##### #??? | | ????????????????????????#+## #??? | | ????????????????????????# #??? | | ????????????????????????# T #??? | | ????????????????????????##### #??? | | ????????????????????????????# !!#??? | | ????????????????????????????# !!#??? | | ??????????????????########### ! #??? | | ??????????????????# @g # #??? | | ??????????????????# """ """g# #??? | | ??????????????????# """ """ # #??? | | ??????????????????# """ """ + """ #??? | | ??????????????????# # """ #??? | | ??????????????????# # """ #??? | | ??????????????????# ""T"" #^ ^ #??? | | ??????????????????# """"" # #??? | | ??????????????????########### """ #??? | | ????????????????????????????# """ #??? | | ?????????????????????######?# """ #??? | | ????????????????????? # #??? | | ????????????????????? ^ #??? | | ????????????????????? # ^ #??? | | ???????????????????????##?### !! #??? | | ????????????????????????????# !! #??? | | ????????????????????????????# !! #??? | | ????????????????????????????# #??? | | ????????????????????????????# #??? | | ????????????????????????????##+##### #??? | | ????????????????????????????? ????# #??? | | ???????????????????????????? ????# #??? | | ???????????????????????????? ?????# #??? | | ???????????????????????????? ?????# #??? | | ???????????????????????????# ??????# #??? | +----------------------------------------------------+ Best States ------------- Heat Dissipation 28 Energy Generation 10 Energy Capacity 125 Matter Stores 197 Matter Capacity 450 Sight Range 16 Terrain Scan Density 10 Evasion (%) 40 Recoil Reduction 2 Item Schematics ----------------- None Robot Schematics ------------------ None Fabricated ------------ Nothing Alien Tech Used ----------------- None Achievements -------------- None Challenges ------------ None Game ------ Seed ClaymoresBiomechanicalSword Manual? 0 Play Time 00:05:33 Cumulative 1.7 hours Start 2022.06.23 @ 07:43:15 End 2022.06.23 @ 07:47:41 Sessions 1 Manual Loads 0 Difficulty Rogue Special Mode None Game No. 11 Rogue 11 Adventurer 0 Explorer 0 Win Type - Total 0 Types 0/0/0/0/0/0/0/0/0 Lore% 3 Gallery% 8 Achievement% 16 Wizard Run 0 Options --------- ASCII 0 Keyboard 0 Movement Numpad Keybinds 0 Fullscreen 1 Font 24/Terminus Map View 76x50 Tactical HUD 0 Map Filters NONE Filters NONE Steam 1 RUN: 50b0218c-7960-4ccb-b02f-4c6fb2b6e80e